bitfinex/quotes_SOLUSD_20250106
["timestamp","ask_amount","ask_price","bid_price","bid_amount"]
[1736130444333,10.66935146,215.43,215.3,3.03638715]
[1736130444334,1.553,215.43,215.38,9.11635146]
[1736130444841,1.553,215.43,215.39,9.11635146]
[1736130445007,1.553,215.43,215.4,9.11635146]
[1736130445203,1.553,215.43,215.41,9.11635146]
[1736130449138,23.05865146,215.48,215.41,9.11635146]
[1736130449439,24.69465146,215.48,215.42,9.11635146]
[1736130450038,24.69465146,215.48,215.41,9.11635146]
[1736130450537,24.69465146,215.48,215.42,9.11635146]
[1736130451440,15.5783,215.48,215.43,9.11635146]
[1736130452053,1.636,215.48,215.44,9.11635146]
[1736130452220,1.636,215.48,215.46,9.11635146]
[1736130452939,1.636,215.48,215.39,0.69616028]
[1736130452940,1.636,215.48,215.47,9.11635146]
[1736130453114,11.6001,215.52,215.47,9.11635146]
[1736130453318,11.6001,215.52,215.48,9.11635146]
[1736130454133,1.6447,215.53,215.49,9.11635146]
[1736130454337,1.6447,215.53,215.5,9.11635146]
[1736130455719,1.6447,215.53,215.49,9.11635146]
[1736130457248,1.6447,215.53,215.48,9.11635146]
[1736130458846,10.76105146,215.53,215.43,0.69601166]
[1736130459026,9.11635146,215.51,215.45,9.11635146]
[1736130459346,9.11635146,215.5,215.39,0.69610702]
[1736130459521,13.2442,215.53,215.41,9.11635146]
[1736130459522,9.11635146,215.48,215.41,9.11635146]
[1736130459728,9.11635146,215.46,215.4,9.11635146]
[1736130461057,14.23363983,215.47,215.4,14.23363983]
[1736130461352,14.23363983,215.46,215.39,14.23363983]
[1736130461534,11.6016,215.49,215.37,14.23363983]
[1736130461535,14.23363983,215.43,215.37,14.23363983]
[1736130461740,14.23363983,215.43,215.31,12.66671946]
[1736130461741,14.23363983,215.41,215.34,14.23363983]
[1736130462056,14.23363983,215.39,215.32,14.23363983]
[1736130462969,32.145884,215.44,215.26,6.6162]
[1736130462970,14.23363983,215.37,215.31,14.23363983]
[1736130463334,14.23363983,215.38,215.31,14.23363983]
[1736130463765,14.23363983,215.39,215.32,14.23363983]
[1736130464143,14.23363983,215.39,215.33,14.23363983]
[1736130464370,14.23363983,215.4,215.33,14.23363983]
[1736130465474,14.23363983,215.41,215.35,14.23363983]
[1736130465844,14.23363983,215.42,215.35,14.23363983]
[1736130466076,14.23363983,215.43,215.36,14.23363983]
[1736130467774,14.23363983,215.41,215.34,14.23363983]
[1736130467985,14.23363983,215.39,215.32,14.23363983]
[1736130468194,14.23363983,215.4,215.33,14.23363983]
[1736130468364,14.23363983,215.41,215.34,14.23363983]
[1736130468565,14.23363983,215.41,215.35,14.23363983]
[1736130469066,14.23363983,215.42,215.36,14.23363983]
[1736130470700,25.83863983,215.43,215.37,14.23363983]
[1736130471909,14.23363983,215.43,215.37,14.23363983]
[1736130472078,16.13831345,215.44,215.38,14.23363983]
[1736130472396,1.5167,215.45,215.39,14.23363983]
[1736130472859,15.75033983,215.45,215.39,14.23363983]
[1736130476705,14.23363983,215.44,215.38,14.23363983]
[1736130477406,1.5167,215.45,215.32,0.6963597]
[1736130477407,15.75033983,215.45,215.39,14.23363983]
[1736130478382,14.23363983,215.44,215.37,14.23363983]
[1736130478903,14.23363983,215.43,215.36,14.23363983]
[1736130479070,14.23363983,215.41,215.35,14.23363983]
[1736130479596,14.23363983,215.41,215.34,14.23363983]
[1736130480393,14.23363983,215.41,215.35,14.23363983]
[1736130480902,14.23363983,215.41,215.34,14.23363983]
[1736130482103,14.23363983,215.4,215.33,14.23363983]
[1736130483010,9.11510562,215.4,215.34,9.11510562]
[1736130483782,9.11510562,215.39,215.33,9.11510562]
[1736130484668,9.11510562,215.41,215.34,9.11510562]
[1736130485073,9.11510562,215.41,215.3,20.69649967]
[1736130485285,9.11510562,215.41,215.34,9.11510562]
[1736130485492,10.67690562,215.36,215.24,8.30818985]
[1736130485798,9.11510562,215.33,215.2,6.2466]
[1736130486003,9.11510562,215.32,215.21,0.69671652]
[1736130486182,9.11510562,215.34,215.27,9.11510562]
[1736130486387,9.11510562,215.35,215.28,9.11510562]
[1736130486693,9.11510562,215.35,215.21,3.03671652]
[1736130487001,9.11510562,215.34,215.28,9.11510562]
[1736130487402,9.11510562,215.34,215.23,20.0]
[1736130487698,9.11510562,215.34,215.28,9.11510562]
[1736130488098,1.5618,215.36,215.3,9.11510562]
[1736130488270,10.67690562,215.36,215.3,9.11510562]
[1736130488705,10.67690562,215.36,215.29,9.11510562]
[1736130488875,9.11510562,215.34,215.23,20.69671761]
[1736130489075,9.11510562,215.34,215.27,9.11510562]
[1736130489374,9.11510562,215.34,215.23,20.69671761]
[1736130489795,9.11510562,215.34,215.27,9.11510562]
[1736130490195,9.11510562,215.35,215.28,9.11510562]
[1736130490503,10.67690562,215.36,215.29,9.11510562]
[1736130490898,1.5618,215.36,215.3,9.11510562]
[1736130491314,10.67690562,215.36,215.3,9.11510562]
[1736130492090,10.67690562,215.36,215.23,20.69671761]
[1736130492291,9.11510562,215.34,215.27,9.11510562]
[1736130492493,9.11510562,215.35,215.28,9.11510562]
[1736130492691,9.11510562,215.35,215.23,20.69671761]
[1736130492893,9.11510562,215.35,215.28,9.11510562]
[1736130495498,9.11510562,215.34,215.27,9.11510562]
[1736130498335,9.11510562,215.35,215.28,9.11510562]
[1736130498538,1.5618,215.36,215.3,9.11510562]
[1736130499422,10.67690562,215.36,215.3,9.11510562]
[1736130499936,10.67690562,215.36,215.23,20.69671761]
[1736130500132,10.67690562,215.36,215.3,9.11510562]
[1736130500324,10.67690562,215.36,215.29,9.11510562]
[1736130500832,9.11510562,215.33,215.23,20.0]
[1736130501017,1.5618,215.36,215.28,9.11510562]
[1736130501231,1.5618,215.36,215.31,9.11510562]
[1736130501435,1.5618,215.36,215.25,0.69672189]
[1736130501619,1.5618,215.36,215.3,9.11510562]
[1736130502252,9.11510562,215.35,215.23,20.0]
[1736130502549,9.11510562,215.33,215.27,9.11510562]
[1736130502961,9.11510562,215.33,215.23,20.0]
[1736130503124,9.11510562,215.31,215.24,9.11510562]
[1736130503451,9.11510562,215.3,215.23,9.11510562]
[1736130503758,9.11510562,215.3,215.24,9.11510562]
[1736130505141,9.11510562,215.31,215.24,9.11510562]
[1736130505346,9.11510562,215.32,215.25,9.11510562]
[1736130505746,9.11510562,215.33,215.26,9.11510562]
[1736130509750,9.11510562,215.34,215.27,9.11510562]
[1736130509921,30.67690562,215.36,215.29,9.11510562]
[1736130510120,9.11510562,215.35,215.28,9.11510562]
[1736130510757,9.11510562,215.35,215.29,9.11510562]
[1736130511239,9.11510562,215.35,215.28,9.11510562]
[1736130514463,30.67690562,215.36,215.29,9.11510562]
[1736130515071,9.11510562,215.34,215.22,20.69669601]
[1736130515238,9.11510562,215.34,215.27,9.11510562]
[1736130516277,9.11510562,215.33,215.26,9.11510562]
[1736130517359,9.11510562,215.33,215.22,0.69669601]
[1736130517558,9.11510562,215.31,215.24,9.11510562]
[1736130519866,9.11510562,215.32,215.25,9.11510562]
[1736130520168,30.67690562,215.36,215.29,9.11510562]
[1736130521878,9.11510562,215.34,215.22,0.69679282]
[1736130522047,9.11510562,215.33,215.26,9.11510562]
[1736130523051,9.11510562,215.32,215.25,9.11510562]
[1736130525467,9.11510562,215.33,215.26,9.11510562]
[1736130525678,9.11510562,215.32,215.25,9.11510562]
[1736130529482,9.11510562,215.34,215.26,9.11510562]
[1736130529775,9.11510562,215.34,215.27,9.11510562]
[1736130530483,9.11510562,215.35,215.28,9.11510562]
[1736130531895,10.67690562,215.36,215.29,9.11510562]
[1736130532077,1.5618,215.36,215.29,9.11510562]
[1736130532278,21.3563465,215.4,215.33,9.11510562]
[1736130532579,21.3563465,215.4,215.27,36.46042248]
[1736130532580,9.11510562,215.39,215.32,9.11510562]
[1736130532779,9.11510562,215.38,215.32,9.11510562]
[1736130533376,9.11510562,215.38,215.31,9.11510562]
[1736130533565,9.11510562,215.35,215.29,9.11510562]
[1736130534452,34.80246035,215.4,215.29,9.11510562]
[1736130534453,9.11510562,215.36,215.29,9.11510562]
[1736130536362,9.11510562,215.36,215.3,9.11510562]
[1736130538280,9.11510562,215.36,215.29,9.11510562]
[1736130538584,9.11510562,215.34,215.27,9.11510562]
[1736130538788,9.11510562,215.33,215.27,9.11510562]
[1736130539162,9.11510562,215.34,215.27,9.11510562]
[1736130539391,9.11510562,215.34,215.28,9.11510562]
[1736130541287,9.11510562,215.36,215.29,9.11510562]
[1736130541458,29.11510562,215.37,215.3,9.11510562]
[1736130541796,9.11510562,215.36,215.29,9.11510562]
[1736130542305,9.11510562,215.36,215.3,9.11510562]
[1736130542476,29.11510562,215.37,215.24,0.69672045]
[1736130542680,9.11510562,215.36,215.29,9.11510562]
[1736130543896,29.11510562,215.37,215.3,9.11510562]
[1736130544264,9.11510562,215.36,215.29,9.11510562]
[1736130544493,9.11510562,215.35,215.28,9.11510562]
[1736130544786,9.11510562,215.35,215.29,9.11510562]
[1736130545189,9.11510562,215.36,215.29,9.11510562]
[1736130545376,29.11510562,215.37,215.3,9.11510562]
[1736130548590,9.11510562,215.36,215.29,9.11510562]
[1736130549300,9.11510562,215.36,215.3,9.11510562]
[1736130549790,29.11510562,215.37,215.3,9.11510562]
[1736130551178,9.11510562,215.36,215.29,9.11510562]
[1736130551377,9.11510562,215.34,215.23,6.143]
[1736130551591,9.11510562,215.33,215.26,9.11510562]
[1736130551896,9.11510562,215.34,215.27,9.11510562]
[1736130552087,20.0,215.37,215.29,9.11510562]
[1736130552307,20.0,215.37,215.23,6.143]
[1736130552473,9.11510562,215.32,215.23,6.143]
[1736130552793,9.11510562,215.32,215.25,9.11510562]
[1736130555174,9.11510562,215.31,215.25,9.11510562]
[1736130555799,9.11510562,215.32,215.25,9.11510562]
[1736130557820,9.11510562,215.31,215.24,9.11510562]
[1736130563205,9.11510562,215.3,215.22,9.11510562]
[1736130563408,9.11510562,215.29,215.22,9.11510562]
[1736130563779,10.65160562,215.28,215.21,9.11510562]
[1736130566183,1.5365,215.28,215.22,9.11510562]
[1736130568008,10.65160562,215.28,215.21,9.11510562]
[1736130568889,1.5365,215.28,215.22,9.11510562]
[1736130569184,1.5365,215.28,215.23,9.11510562]
[1736130569390,1.5365,215.28,215.24,9.11510562]
[1736130570908,1.5365,215.28,215.24,8.61510562]
[1736130572007,1.5365,215.28,215.24,8.11510562]
[1736130572514,1.5365,215.28,215.23,9.11510562]
[1736130575732,1.5365,215.28,215.18,6.3887]
[1736130575936,1.5365,215.28,215.22,9.11510562]
[1736130576960,1.5365,215.28,215.23,9.11510562]
[1736130578235,1.5365,215.28,215.18,6.3887]
[1736130578400,1.5365,215.28,215.23,9.11510562]
[1736130579907,1.5365,215.28,215.24,9.11510562]
[1736130580141,1.5365,215.28,215.23,9.11510562]
[1736130580340,9.11510562,215.27,215.17,0.69685989]
[1736130580621,9.11510562,215.26,215.15,8.36287862]
[1736130580837,21.5365,215.28,215.21,9.11510562]
[1736130581048,30.65160562,215.28,215.21,9.11510562]
[1736130581736,1.5365,215.28,215.22,9.11510562]
[1736130585812,9.11510562,215.27,215.15,7.66591946]
[1736130586012,1.5365,215.28,215.23,9.11510562]
[1736130586717,20.0,215.33,215.27,9.11510562]
[1736130587219,20.0,215.33,215.28,9.11510562]
[1736130588939,20.0,215.33,215.27,9.11510562]
[1736130591239,10.65230562,215.34,215.18,0.69677539]
[1736130591453,10.65230562,215.34,215.28,9.11510562]
[1736130591754,1.5372,215.34,215.28,9.11510562]
[1736130592040,1.5372,215.34,215.22,20.0]
[1736130592221,1.5372,215.34,215.28,9.11510562]
[1736130592421,10.65230562,215.34,215.28,9.11510562]
[1736130595956,10.65230562,215.34,215.27,9.11510562]
[1736130596633,10.65230562,215.34,215.28,9.11510562]
[1736130597752,1.5372,215.34,215.28,9.11510562]
[1736130597947,1.5372,215.34,215.29,9.11510562]
[1736130598349,1.5372,215.34,215.3,9.11510562]
[1736130598966,1.5372,215.34,215.32,9.11510562]
[1736130599137,9.11510562,215.39,215.32,9.11510562]
[1736130599435,22.8636465,215.4,215.33,9.11510562]
[1736130599634,31.97875212,215.4,215.33,9.11510562]
[1736130601436,22.8636465,215.4,215.34,9.11510562]
[1736130601639,22.8636465,215.4,215.36,9.11510562]
[1736130601840,22.8636465,215.4,215.38,9.11510562]
[1736130601841,21.3563465,215.4,215.38,9.11510562]
[1736130602150,10.62240562,215.46,215.39,9.11510562]
[1736130602351,1.5073,215.46,215.41,9.11510562]
[1736130602550,1.5073,215.46,215.42,9.11510562]
[1736130602860,16.37456904,215.5,215.43,9.11510562]
[1736130603537,9.11510562,215.47,215.35,7.01083293]
[1736130603736,9.11510562,215.45,215.38,9.11510562]
[1736130603937,9.11510562,215.42,215.35,15.42970562]
[1736130604145,9.11510562,215.39,215.29,9.9444]
[1736130604762,9.11510562,215.4,215.29,9.9444]
[1736130605077,9.11510562,215.39,215.32,9.11510562]
[1736130605360,9.11510562,215.38,215.32,9.11510562]
[1736130607267,9.11510562,215.38,215.31,9.11510562]
[1736130607466,9.11510562,215.39,215.32,9.11510562]
[1736130608338,9.11510562,215.38,215.31,9.11510562]
[1736130610191,9.11510562,215.39,215.32,9.11510562]
[1736130610463,9.11510562,215.4,215.33,9.11510562]
[1736130611071,9.11510562,215.39,215.32,9.11510562]
[1736130612273,9.11510562,215.36,215.24,8.26599656]
[1736130612564,9.11510562,215.34,215.27,9.11510562]
[1736130612883,9.11510562,215.33,215.26,9.11510562]
[1736130613378,9.11510562,215.32,215.26,9.11510562]
[1736130614351,1.5054,215.35,215.18,2.22251332]
[1736130614352,9.11510562,215.29,215.19,6.1789]
[1736130614686,9.11510562,215.29,215.22,9.11510562]
[1736130615346,9.11510562,215.29,215.23,9.11510562]
[1736130615849,9.11510562,215.26,215.19,6.1789]
[1736130616152,9.11510562,215.26,215.2,9.11510562]
[1736130616853,9.11510562,215.27,215.21,9.11510562]
[1736130617063,29.11510562,215.28,215.21,9.11510562]
[1736130617263,29.11510562,215.28,215.22,9.11510562]
[1736130618168,9.11510562,215.31,215.24,9.11510562]
[1736130618376,9.11510562,215.32,215.25,9.11510562]
[1736130618673,2.32,215.33,215.27,9.11510562]
[1736130618890,20.0,215.32,215.27,9.11510562]
[1736130619174,20.0,215.32,215.19,6.87584261]
[1736130619175,20.0,215.32,215.26,9.11510562]
[1736130619547,29.11510562,215.32,215.25,9.11510562]
[1736130620268,9.11510562,215.3,215.19,6.1789]
[1736130620451,23.776884,215.31,215.19,6.1789]
[1736130620452,9.11510562,215.28,215.22,9.11510562]
[1736130622977,2.32,215.33,215.24,9.11510562]
[1736130623172,9.11510562,215.31,215.25,9.11510562]
[1736130623486,9.11510562,215.3,215.24,9.11510562]
[1736130624075,9.11510562,215.29,215.19,6.1789]
[1736130624282,9.11510562,215.29,215.22,9.11510562]
[1736130624755,23.776884,215.32,215.22,9.11510562]
[1736130624756,9.11510562,215.28,215.22,9.11510562]
[1736130625272,23.776884,215.32,215.21,9.11510562]
[1736130625485,9.11510562,215.27,215.21,9.11510562]
[1736130625775,9.11510562,215.28,215.22,9.11510562]
[1736130626680,20.0,215.29,215.23,9.11510562]
[1736130626983,29.11510562,215.29,215.22,9.11510562]
[1736130627281,9.11510562,215.28,215.22,9.11510562]
[1736130629183,9.11510562,215.28,215.19,6.1789]
[1736130629383,9.11510562,215.28,215.22,9.11510562]
[1736130629682,10.65150562,215.27,215.17,20.0]
[1736130629900,10.65150562,215.27,215.21,9.11510562]
[1736130630064,10.65150562,215.27,215.2,9.11510562]
[1736130630386,9.11510562,215.25,215.18,9.11510562]
[1736130630577,9.11510562,215.24,215.18,9.11510562]
[1736130631185,9.11510562,215.24,215.11,18.11774986]
[1736130631186,9.11510562,215.24,215.17,9.11510562]
[1736130632083,9.11510562,215.25,215.19,9.11510562]
[1736130632587,32.89198962,215.26,215.2,9.11510562]
[1736130632885,10.65150562,215.27,215.21,9.11510562]
[1736130633284,10.65150562,215.27,215.2,9.11510562]
[1736130634889,9.11510562,215.26,215.2,9.11510562]
[1736130635593,9.11510562,215.26,215.19,9.11510562]
[1736130636693,9.11510562,215.26,215.2,9.11510562]
[1736130637292,9.11510562,215.26,215.19,9.11510562]
[1736130637491,9.11510562,215.24,215.17,9.11510562]
[1736130638791,9.11510562,215.18,215.12,9.11510562]
[1736130638963,9.11510562,215.18,215.06,18.1261]
[1736130639291,9.11510562,215.17,215.1,9.11510562]
[1736130639895,9.11510562,215.17,215.06,6.502]
[1736130640092,9.11510562,215.14,215.06,6.502]
[1736130640274,9.11510562,215.15,215.08,9.11510562]
[1736130640682,9.11510562,215.16,215.09,9.11510562]
[1736130641091,9.11510562,215.16,215.06,6.502]
[1736130641276,9.11510562,215.16,215.09,9.11510562]
[1736130641588,9.11510562,215.16,215.1,9.11510562]
[1736130642164,11.41510562,215.17,215.1,9.11510562]
[1736130642799,11.41510562,215.17,215.11,9.11510562]
[1736130643093,1.6563,215.19,215.13,9.11510562]
[1736130643270,1.6563,215.19,215.14,9.11510562]
[1736130643470,1.6563,215.19,215.06,6.502]
[1736130643471,9.11510562,215.17,215.06,6.502]
[1736130643683,9.11510562,215.17,215.1,9.11510562]
[1736130643880,9.11510562,215.16,215.1,9.11510562]
[1736130645007,1.6563,215.19,215.06,6.502]
[1736130645008,9.11510562,215.15,215.06,6.502]
[1736130645212,2.32,215.2,215.01,6.0017]
[1736130645213,9.11510562,215.09,215.01,6.0017]
[1736130645506,1.6078,215.1,214.96,6.0017]
[1736130645715,9.11510562,215.07,215.0,9.11510562]
[1736130646490,9.11510562,215.05,214.99,9.11510562]
[1736130647015,23.776884,215.09,214.96,6.0017]
[1736130647281,14.29045756,215.04,214.97,14.29045756]
[1736130647487,14.29045756,215.06,214.99,14.29045756]
[1736130647796,14.29045756,215.08,215.01,14.29045756]
[1736130648004,16.61045756,215.09,215.03,14.29045756]
[1736130648292,1.6078,215.1,215.06,14.29045756]
[1736130648501,1.6078,215.1,215.07,14.29045756]
[1736130649006,1.6078,215.1,215.08,14.29045756]
[1736130649496,1.6078,215.1,215.09,14.29045756]
[1736130649711,22.32,215.14,215.09,14.29045756]
[1736130649925,2.32,215.14,215.11,14.29045756]
[1736130650279,2.32,215.14,215.1,14.29045756]
[1736130650715,2.32,215.14,215.11,14.29045756]
[1736130651584,2.32,215.14,215.12,14.29045756]
[1736130651893,21.5021,215.15,215.12,14.29045756]
[1736130652998,1.6476,215.2,215.14,14.29045756]
[1736130653199,2.3,215.19,215.14,14.29045756]
[1736130653404,20.0,215.18,215.15,14.29045756]
[1736130654516,1.6476,215.2,215.17,14.29045756]
[1736130654683,1.6476,215.2,215.19,14.29045756]
[1736130655085,1.6476,215.2,215.17,14.29045756]
[1736130656683,1.6476,215.2,215.1,6.2988]
[1736130656684,1.6476,215.2,215.15,14.29045756]
[1736130656882,1.6476,215.2,215.14,14.29045756]
[1736130657105,14.29045756,215.17,215.1,14.29045756]
[1736130657908,14.29045756,215.16,215.1,14.29045756]
[1736130658787,14.29045756,215.17,215.11,14.29045756]
[1736130658985,14.29045756,215.18,215.12,14.29045756]
[1736130660615,35.93805756,215.2,215.13,14.29045756]
[1736130660781,14.29045756,215.18,215.12,14.29045756]
[1736130660982,14.29045756,215.19,215.12,14.29045756]
[1736130661981,14.29045756,215.17,215.1,14.29045756]
[1736130662608,21.6476,215.2,215.04,6.3401]
[1736130662609,14.29045756,215.16,215.09,14.29045756]
[1736130662789,16.59045756,215.16,215.09,14.29045756]
[1736130663111,14.29045756,215.14,215.06,14.29045756]
[1736130663281,14.29045756,215.13,215.06,14.29045756]
[1736130663487,14.29045756,215.12,215.05,14.29045756]
[1736130664203,14.29045756,215.12,215.0,1.5334]
[1736130664204,15.83615756,215.11,215.04,14.29045756]
[1736130664726,1.5457,215.11,215.05,14.29045756]
[1736130667190,1.5457,215.11,215.06,14.29045756]
[1736130667385,1.5457,215.11,215.07,14.29045756]
[1736130667587,1.5457,215.11,215.08,14.29045756]
[1736130667787,20.0,215.14,215.1,14.29045756]
[1736130668211,20.0,215.14,215.09,14.29045756]
[1736130668513,18.13615756,215.16,215.09,14.29045756]
[1736130668692,3.8457,215.16,215.1,14.29045756]
[1736130670912,3.8457,215.16,215.02,136.2]
[1736130670913,14.29045756,215.15,215.08,14.29045756]
[1736130671100,14.29045756,215.12,215.06,14.29045756]
[1736130672411,14.29045756,215.1,215.03,14.29045756]
[1736130674316,14.29045756,215.11,215.04,14.29045756]
[1736130675018,14.29045756,215.12,215.05,14.29045756]
[1736130675196,14.29045756,215.13,215.06,14.29045756]
[1736130675717,14.29045756,215.12,215.05,14.29045756]
[1736130677505,14.29045756,215.13,215.06,14.29045756]
[1736130678022,20.0,215.12,215.06,14.29045756]
[1736130678718,34.29045756,215.14,215.07,14.29045756]
[1736130678913,20.0,215.14,215.08,14.29045756]
[1736130679122,20.0,215.14,215.1,14.29045756]
[1736130679420,18.13615756,215.16,215.1,14.29045756]
[1736130679717,3.8457,215.16,215.1,14.29045756]
[1736130682621,1.5457,215.16,215.1,14.29045756]
[1736130683322,1.5457,215.16,215.12,14.29045756]
[1736130683508,1.5457,215.16,215.14,14.29045756]
[1736130683911,16.59045756,215.2,215.14,14.29045756]
[1736130684109,2.3,215.2,215.14,14.29045756]
[1736130684305,20.0,215.18,215.14,14.29045756]
[1736130685026,2.3,215.2,215.13,14.29045756]
[1736130685027,36.59045756,215.2,215.13,14.29045756]
[1736130685718,36.59045756,215.2,215.14,14.29045756]
[1736130686621,23.776884,215.19,215.14,14.29045756]
[1736130686827,36.59045756,215.2,215.14,14.29045756]
[1736130687130,14.29045756,215.19,215.12,14.29045756]
[1736130687815,36.59045756,215.2,215.13,14.29045756]
[1736130688722,36.59045756,215.2,215.07,6.80856543]
[1736130688723,36.59045756,215.2,215.14,14.29045756]
[1736130688926,15.89575756,215.22,215.16,14.29045756]
[1736130689129,1.6053,215.22,215.17,14.29045756]
[1736130689430,1.6053,215.22,215.18,14.29045756]
[1736130689808,1.6053,215.22,215.17,14.29045756]
[1736130690009,1.6053,215.22,215.16,14.29045756]
[1736130690215,15.89575756,215.22,215.16,14.29045756]
[1736130691312,15.89575756,215.22,215.15,14.29045756]
[1736130691933,1.6053,215.22,215.16,14.29045756]
[1736130692227,1.6053,215.22,215.18,14.29045756]
[1736130693828,21.37307726,215.23,215.19,14.29045756]
[1736130694726,21.37307726,215.23,215.17,14.29045756]
[1736130694934,35.66353482,215.23,215.16,14.29045756]
[1736130695235,14.29045756,215.21,215.15,14.29045756]
[1736130695434,14.29045756,215.22,215.15,14.29045756]
[1736130696033,14.29045756,215.21,215.14,14.29045756]
[1736130696211,14.29045756,215.19,215.12,14.29045756]
[1736130696413,14.29045756,215.18,215.11,14.29045756]
[1736130696705,14.29045756,215.19,215.12,14.29045756]
[1736130697132,15.92515756,215.19,215.12,14.29045756]
[1736130697430,14.29045756,215.18,215.11,14.29045756]
[1736130699908,15.92515756,215.19,215.12,14.29045756]
[1736130700217,1.6347,215.19,215.16,14.29045756]
[1736130700614,37.96353482,215.23,215.16,14.29045756]
[1736130700811,23.67307726,215.23,215.17,14.29045756]
[1736130701427,37.96353482,215.23,215.16,14.29045756]
[1736130701624,35.66353482,215.23,215.16,14.29045756]
[1736130702505,35.66353482,215.23,215.12,0.69704742]
[1736130702506,14.29045756,215.22,215.15,14.29045756]
[1736130702708,14.29045756,215.21,215.14,14.29045756]
[1736130702934,14.29045756,215.2,215.13,14.29045756]
[1736130703120,14.29045756,215.21,215.14,14.29045756]
[1736130703838,14.29045756,215.22,215.15,14.29045756]
[1736130704040,21.37307726,215.23,215.18,14.29045756]
[1736130705240,21.37307726,215.23,215.2,14.29045756]
[1736130705535,21.37307726,215.23,215.12,148.51842776]
[1736130705536,3.9283,215.3,215.22,14.29045756]
[1736130705838,3.9283,215.3,215.24,14.29045756]
[1736130706136,1.6283,215.3,215.24,14.29045756]
[1736130706436,1.6283,215.3,215.25,14.29045756]
[1736130706616,1.6283,215.3,215.26,14.29045756]
[1736130707037,1.6283,215.3,215.25,14.29045756]
[1736130708036,1.6283,215.3,215.24,14.29045756]
[1736130708234,15.91875756,215.3,215.24,14.29045756]
[1736130709244,15.91875756,215.3,215.23,14.29045756]
[1736130709538,14.29045756,215.26,215.19,14.29045756]
[1736130709840,14.29045756,215.27,215.2,14.29045756]
[1736130710522,1.6283,215.3,215.2,14.29045756]
[1736130710523,14.29045756,215.26,215.2,14.29045756]
[1736130710924,14.29045756,215.27,215.2,14.29045756]
[1736130711138,14.29045756,215.28,215.21,14.29045756]
[1736130712246,14.29045756,215.26,215.2,14.29045756]
[1736130713445,14.29045756,215.27,215.2,14.29045756]
[1736130713944,1.6283,215.3,215.21,14.29045756]
[1736130713945,14.29045756,215.28,215.21,14.29045756]
[1736130714145,14.29045756,215.29,215.22,14.29045756]
[1736130714347,15.91875756,215.3,215.23,14.29045756]
[1736130714842,20.0,215.31,215.25,14.29045756]
[1736130715231,14.29045756,215.32,215.25,14.29045756]
[1736130716827,14.29045756,215.32,215.26,14.29045756]
[1736130717029,14.29045756,215.34,215.28,14.29045756]
[1736130717958,14.29045756,215.33,215.26,14.29045756]
[1736130718122,14.29045756,215.31,215.25,14.29045756]
[1736130718322,14.29045756,215.31,215.24,14.29045756]
[1736130718542,1.6283,215.35,215.17,11.6183]
[1736130718543,14.29045756,215.28,215.21,14.29045756]
[1736130718725,1.6283,215.35,215.2,14.29045756]
[1736130718726,14.29045756,215.27,215.2,14.29045756]
[1736130719150,14.29045756,215.26,215.2,14.29045756]
[1736130719530,14.29045756,215.27,215.2,14.29045756]
[1736130720034,23.776884,215.34,215.21,14.29045756]
[1736130720350,23.776884,215.34,215.16,142.4376]
[1736130720351,14.29045756,215.28,215.22,14.29045756]
[1736130720549,14.29045756,215.29,215.22,14.29045756]
[1736130720851,14.29045756,215.31,215.24,14.29045756]
[1736130721471,14.29045756,215.33,215.26,14.29045756]
[1736130722027,14.29045756,215.34,215.27,14.29045756]
[1736130722224,15.91875756,215.35,215.29,14.29045756]
[1736130722430,14.29045756,215.33,215.27,14.29045756]
[1736130722731,14.29045756,215.29,215.23,14.29045756]
[1736130722933,14.29045756,215.29,215.22,150.49045756]
[1736130723973,14.29045756,215.28,215.21,14.29045756]
[1736130724157,14.29045756,215.28,215.16,156.72805756]
[1736130724158,14.29045756,215.25,215.19,14.29045756]
[1736130724656,14.29045756,215.25,215.18,14.29045756]
[1736130725149,14.29045756,215.24,215.17,14.29045756]
[1736130725452,14.29045756,215.25,215.18,14.29045756]
[1736130726059,14.29045756,215.24,215.17,14.29045756]
[1736130727237,14.29045756,215.25,215.18,14.29045756]
[1736130727430,15.83185756,215.26,215.19,14.29045756]
[1736130727637,1.5414,215.26,215.2,14.29045756]
[1736130727945,15.83185756,215.26,215.19,14.29045756]
[1736130728256,1.5414,215.26,215.2,14.29045756]
[1736130728957,1.5414,215.26,215.22,14.29045756]
[1736130730660,14.29045756,215.3,215.23,14.29045756]
[1736130731541,14.29045756,215.3,215.24,14.29045756]
[1736130732551,14.29045756,215.29,215.23,14.29045756]
[1736130732752,14.29045756,215.29,215.22,14.29045756]
[1736130734054,14.29045756,215.28,215.21,14.29045756]
[1736130734860,14.29045756,215.29,215.22,14.29045756]
[1736130735162,14.29045756,215.29,215.18,23.776884]
[1736130735163,14.29045756,215.3,215.23,14.29045756]
[1736130735371,14.29045756,215.31,215.24,14.29045756]